fUSD/lending_fUSD_20240205
["ID","MTS","AMOUNT","RATE_DAILY","PERIOD"]
[313304220,1707127858173,-500.0,0.00042739,7]
[313304221,1707127858181,-500.0,0.00042739,7]
[313304222,1707127858192,-500.0,0.00042739,7]
[313304223,1707127858201,-500.0,0.00042739,7]
[313304224,1707127858210,-500.0,0.00042739,7]
[313304225,1707127858219,-500.0,0.00042739,7]
[313304226,1707127858229,-590.08537208,0.00042739,7]
[313304227,1707127858238,-513.87,0.00042739,7]
[313304228,1707127858247,-500.0,0.00042739,7]
[313304229,1707127858258,-574.16220988,0.00042739,7]
[313304230,1707127858268,-500.0,0.00042739,7]
[313304231,1707127858278,-500.0,0.00042739,7]
[313304232,1707127858287,-500.0,0.00042739,7]
[313304233,1707127858296,-500.0,0.00042739,7]
[313304234,1707127858305,-500.0,0.00042739,7]
[313304235,1707127858314,-364.06540297,0.00042739,7]
[313304236,1707127858323,-500.0,0.00042739,7]
[313304237,1707127858333,-576.3695227,0.00042739,7]
[313304238,1707127858342,-500.0,0.00042739,7]
[313304239,1707127858351,-500.0,0.00042739,7]
[313304240,1707127858360,-500.0,0.00042739,30]
[313304241,1707127858370,-500.0,0.00042739,7]
[313304242,1707127858378,-500.0,0.00042739,7]
[313304243,1707127858387,-276.55136897,0.00042739,7]
[313304244,1707127858396,-500.0,0.00042739,7]
[313304245,1707127858405,-276.41520547,0.00042739,7]
[313304246,1707127858506,-500.0,0.00042739,7]
[313304247,1707127858517,-500.0,0.00042739,2]
[313304248,1707127858526,-500.0,0.00042739,7]
[313304249,1707127858536,-500.0,0.00042739,7]
[313304250,1707127858545,-693.27,0.00042739,7]
[313304251,1707127858554,-500.0,0.00042739,7]
[313304252,1707127858563,-500.0,0.00042739,7]
[313304253,1707127858572,-500.0,0.00042739,7]
[313304254,1707127858581,-500.0,0.00042739,7]
[313304255,1707127858590,-500.0,0.00042739,7]
[313304256,1707127858599,-500.0,0.00042739,7]
[313304257,1707127858608,-565.51290072,0.00042739,7]
[313304258,1707127858617,-500.0,0.00042739,7]
[313304259,1707127858626,-500.0,0.00042739,7]
[313304260,1707127858635,-500.0,0.00042739,7]
[313304261,1707127858644,-599.12161872,0.00042739,7]
[313304262,1707127858653,-500.0,0.00042739,7]
[313304263,1707127858662,-500.0,0.00042739,7]
[313304264,1707127858671,-500.0,0.00042739,7]
[313304265,1707127858680,-583.95091067,0.00042739,7]
[313304266,1707127858689,-500.0,0.00042739,7]
[313304267,1707127858698,-346.43654122,0.00042739,7]
[313304268,1707127858707,-500.0,0.00042739,7]
[313304269,1707127858716,-189.31518294,0.00042739,7]
[313304270,1707127858726,-166.74792839,0.00042739,7]
[313304271,1707127858734,-276.38289257,0.00042739,3]
[313304272,1707127858744,-500.0,0.00042739,7]
[313304273,1707127858752,-500.0,0.00042739,7]
[313304274,1707127858762,-500.0,0.00042739,7]
[313304275,1707127858771,-500.0,0.00042739,7]
[313304276,1707127858780,-500.0,0.00042739,7]
[313304277,1707127858789,-500.0,0.00042739,20]
[313304278,1707127858798,-500.0,0.00042739,7]
[313304279,1707127858807,-500.0,0.00042739,7]
[313304280,1707127858816,-500.0,0.00042739,7]
[313304281,1707127858824,-500.0,0.00042739,7]
[313304282,1707127858833,-535.03834451,0.00042739,7]
[313304283,1707127858842,-500.0,0.00042739,7]
[313304284,1707127858851,-255.63247684,0.00042739,7]
[313304285,1707127858860,-500.0,0.00042739,7]
[313304286,1707127858869,-150.0,0.00042739,7]
[313304287,1707127858878,-500.0,0.00042739,7]
[313304288,1707127858887,-535.08176773,0.00042739,7]
[313304289,1707127858896,-500.0,0.00042739,7]
[313304290,1707127858905,-500.0,0.00042739,7]
[313304291,1707127858914,-270.76146943,0.00042739,7]
[313304292,1707127858923,-500.0,0.00042739,7]
[313304293,1707127858933,-216.85526259,0.00042739,7]
[313304294,1707127858942,-528.75668559,0.00042739,7]
[313304295,1707127858950,-500.0,0.00042739,7]
[313304296,1707127858960,-177.92270713,0.00042739,7]
[313304297,1707127858969,-229.20664968,0.00042739,7]
[313304298,1707127858978,-500.0,0.00042739,7]
[313304299,1707127858987,-500.0,0.00042739,7]
[313304300,1707127858996,-500.0,0.00042739,7]
[313304301,1707127859005,-500.0,0.00042739,7]
[313304302,1707127859015,-500.0,0.00042739,5]
[313304303,1707127859024,-197.96495114,0.00042739,7]
[313304304,1707127859033,-500.0,0.00042739,7]
[313304305,1707127859042,-163.89672892,0.00042739,7]
[313304306,1707127859052,-500.0,0.00042739,7]
[313304307,1707127859061,-201.57695105,0.00042739,7]
[313304308,1707127859070,-500.0,0.00042739,7]
[313304309,1707127859080,-157.59423856,0.00042739,7]
[313304310,1707127859089,-179.40373184,0.00042739,7]
[313304311,1707127859099,-476.13333551,0.00042739,7]
[313304312,1707127859108,-500.0,0.00042739,7]
[313304313,1707127859117,-605.9334514,0.00042739,7]
[313304314,1707127859127,-1000.0,0.00042739,30]
[313304315,1707127859136,-500.0,0.00042739,7]
[313304316,1707127859145,-500.0,0.00042739,7]
[313304317,1707127859154,-194.37400265,0.00042739,7]
[313304318,1707127859165,-500.0,0.00042739,7]
[313304319,1707127859175,-569.71,0.00042739,7]
[313304320,1707127859184,-500.0,0.00042739,7]
[313304321,1707127859197,-500.0,0.00042739,2]
[313304322,1707127859206,-500.0,0.00042739,7]
[313304323,1707127859215,-500.0,0.00042739,7]
[313304324,1707127859225,-500.0,0.00042739,7]
[313304325,1707127859234,-271.72191535,0.00042739,7]
[313304326,1707127859243,-500.0,0.00042739,7]
[313304327,1707127859252,-609.11276199,0.00042739,7]
[313304328,1707127859263,-500.0,0.00042739,7]
[313304329,1707127859272,-500.0,0.00042739,7]
[313304330,1707127859281,-340.6654382,0.00042739,7]
[313304331,1707127859289,-500.0,0.00042739,7]
[313304332,1707127859298,-913.14,0.00042739,7]
[313304333,1707127859307,-622.14,0.00042739,7]
[313304334,1707127859316,-565.85144418,0.00042739,7]
[313304335,1707127859325,-500.0,0.00042739,7]
[313304336,1707127859335,-595.54045968,0.00042739,7]
[313304337,1707127859343,-500.0,0.00042739,7]
[313304338,1707127859352,-500.0,0.00042739,7]
[313304339,1707127859361,-245.24528069,0.00042739,7]
[313304340,1707127859371,-183.22499793,0.00042739,7]
[313304341,1707127859380,-504.54933471,0.00042739,7]
[313304342,1707127859389,-500.0,0.00042739,7]
[313304343,1707127859398,-500.0,0.00042739,7]
[313304344,1707127859407,-563.13,0.00042739,7]
[313304345,1707127859417,-500.0,0.00042739,7]
[313304346,1707127859426,-869.02,0.00042739,7]
[313304347,1707127859435,-500.0,0.00042739,7]
[313304348,1707127859444,-500.0,0.00042739,7]
[313304349,1707127859453,-459.33220555,0.00042739,7]
[313304350,1707127859462,-1336.9,0.00042739,7]
[313304351,1707127859472,-500.0,0.00042739,7]
[313304352,1707127859481,-1664.03,0.00042739,7]
[313304353,1707127859490,-542.92227636,0.00042739,7]
[313304354,1707127859499,-500.0,0.00042739,7]
[313304355,1707127859509,-500.0,0.00042739,7]
[313304356,1707127859517,-522.17,0.00042739,7]
[313304357,1707127859526,-240.34268855,0.00042739,7]
[313304358,1707127859536,-911.82,0.00042739,7]
[313304359,1707127859545,-876.24,0.00042739,7]
[313304360,1707127859554,-500.0,0.00042739,7]
[313304361,1707127859563,-1208.95,0.00042739,7]
[313304362,1707127859572,-500.0,0.00042739,7]
[313304363,1707127859583,-500.0,0.00042739,7]
[313304364,1707127859592,-500.0,0.00042739,7]
[313304365,1707127859602,-2208.28,0.00042739,5]
[313304366,1707127859611,-991.16,0.00042739,7]
[313304367,1707127859620,-500.0,0.00042739,7]
[313304368,1707127859630,-500.0,0.00042739,7]
[313304369,1707127859639,-152.31339829,0.00042739,7]
[313304370,1707127859648,-500.0,0.00042739,7]
[313304371,1707127859657,-4873.25,0.00042739,7]
[313304372,1707127859666,-500.0,0.00042739,7]
[313304373,1707127859675,-500.0,0.00042739,7]
[313304374,1707127859684,-1507.15,0.00042739,7]
[313304375,1707127859692,-500.0,0.00042739,7]
[313304376,1707127859702,-500.0,0.00042739,7]
[313304377,1707127859711,-500.0,0.00042739,7]
[313304378,1707127859720,-500.0,0.00042739,7]
[313304379,1707127859729,-724.44,0.00042739,7]
[313304380,1707127859738,-890.52,0.00042739,7]
[313304381,1707127859747,-500.0,0.00042739,7]
[313304382,1707127859757,-829.46,0.00042739,7]
[313304383,1707127859766,-611.71,0.00042739,7]
[313304384,1707127859775,-500.0,0.00042739,7]
[313304385,1707127859784,-500.0,0.00042739,7]
[313304386,1707127859793,-556.31,0.00042739,7]
[313304387,1707127859802,-687.93,0.00042739,7]
[313304388,1707127859811,-832.51,0.00042739,7]
[313304389,1707127859820,-871.11,0.00042739,7]
[313304390,1707127859829,-500.0,0.00042739,7]
[313304391,1707127859838,-500.0,0.00042739,7]
[313304392,1707127859847,-1243.36,0.00042739,7]
[313304393,1707127859856,-500.0,0.00042739,7]
[313304394,1707127859865,-3012.41,0.00042739,7]
[313304395,1707127859874,-500.0,0.00042739,7]
[313304396,1707127859883,-500.0,0.00042739,7]
[313304397,1707127859892,-590.23,0.00042739,7]
[313304398,1707127859901,-500.0,0.00042739,7]
[313304399,1707127859911,-500.0,0.00042739,7]
[313304400,1707127859920,-500.0,0.00042739,7]
[313304401,1707127859929,-500.0,0.00042739,7]
[313304402,1707127859938,-3014.28,0.00042739,7]
[313304403,1707127859947,-621.05,0.00042739,7]
[313304404,1707127859957,-589.53,0.00042739,7]
[313304405,1707127860055,-500.0,0.00042739,7]
[313304406,1707127860066,-500.0,0.00042739,7]
[313304407,1707127860076,-500.0,0.00042739,7]
[313304408,1707127860085,-830.56,0.00042739,7]
[313304409,1707127860095,-1902.12,0.00042739,7]
[313304410,1707127860104,-1035.44,0.00042739,7]
[313304411,1707127860113,-2847.02,0.00042739,7]
[313304412,1707127860124,-807.95,0.00042739,7]
[313304413,1707127860134,-181.53746193,0.00042739,7]
[313304414,1707127860143,-500.0,0.00042739,7]
[313304415,1707127860153,-500.0,0.00042739,7]
[313304416,1707127860162,-500.0,0.00042739,7]
[313304417,1707127860173,-500.0,0.00042739,7]
[313304418,1707127860186,-500.0,0.00042739,7]
[313304419,1707127860196,-500.0,0.00042739,7]
[313304420,1707127860206,-536.86,0.00042739,7]
[313304421,1707127860216,-2651.98,0.00042739,7]
[313304422,1707127860226,-500.0,0.00042739,7]
[313304423,1707127860236,-213.45122276,0.00042739,7]
[313304424,1707127860246,-500.0,0.00042739,7]
[313304425,1707127860256,-1214.43,0.00042739,7]
[313304426,1707127860268,-500.0,0.00042739,7]
[313304427,1707127860278,-753.45,0.00042739,7]
[313304428,1707127860288,-500.0,0.00042739,7]
[313304429,1707127860297,-622.87,0.00042739,7]
[313304430,1707127860309,-500.0,0.00042739,7]
[313304431,1707127860318,-1152.32,0.00042739,7]
[313304432,1707127860328,-1196.94,0.00042739,7]
[313304433,1707127860337,-500.0,0.00042739,7]
[313304434,1707127860347,-500.0,0.00042739,7]
[313304435,1707127860356,-500.0,0.00042739,7]
[313304436,1707127860365,-500.0,0.00042739,7]
[313304437,1707127860375,-500.0,0.00042739,7]
[313304438,1707127860384,-530.27,0.00042739,7]
[313304439,1707127860393,-525.01,0.00042739,7]
[313304440,1707127860402,-500.0,0.00042739,7]
[313304441,1707127860411,-285.04,0.00042739,7]
[313304442,1707127860420,-1136.73,0.00042739,7]
[313304443,1707127860429,-500.0,0.00042739,7]
[313304444,1707127860438,-500.0,0.00042739,7]
[313304445,1707127860447,-242.7,0.00042739,7]
[313304446,1707127860457,-500.0,0.00042739,7]
[313304447,1707127860466,-500.0,0.00042739,7]
[313304448,1707127860475,-500.0,0.00042739,7]
[313304449,1707127860484,-768.14,0.00042739,7]
[313304450,1707127860493,-500.0,0.00042739,7]
[313304451,1707127860502,-500.0,0.00042739,7]
[313304452,1707127860513,-500.0,0.00042739,7]
[313304453,1707127860523,-1043.92,0.00042739,7]
[313304454,1707127860533,-717.13,0.00042739,7]
[313304455,1707127860542,-500.0,0.00042739,7]
[313304456,1707127860551,-500.0,0.00042739,7]
[313304457,1707127860560,-500.0,0.00042739,7]
[313304458,1707127860569,-500.0,0.00042739,7]
[313304459,1707127860579,-500.0,0.00042739,7]
[313304460,1707127860588,-567.71,0.00042739,7]
[313304461,1707127860597,-2573.61,0.00042739,7]
[313304462,1707127860607,-732.21,0.00042739,7]
[313304463,1707127860616,-2569.02,0.00042739,7]
[313304464,1707127860625,-500.0,0.00042739,7]
[313304465,1707127860634,-585.77,0.00042739,7]
[313304466,1707127860643,-500.0,0.00042739,7]
[313304467,1707127860652,-500.0,0.00042739,7]
[313304468,1707127860661,-500.0,0.00042739,7]
[313304469,1707127860670,-500.0,0.00042739,7]
[313304470,1707127860679,-500.0,0.00042739,7]
[313304471,1707127860688,-500.0,0.00042739,7]
[313304472,1707127860698,-500.0,0.00042739,7]
[313304473,1707127860707,-500.0,0.00042739,7]
[313304474,1707127860716,-500.0,0.00042739,7]
[313304475,1707127860726,-500.0,0.00042739,7]
[313304476,1707127860735,-500.0,0.00042739,7]
[313304477,1707127860744,-500.0,0.00042739,7]
[313304478,1707127860753,-500.0,0.00042739,7]
[313304479,1707127860764,-500.0,0.00042739,7]
[313304480,1707127860773,-500.0,0.00042739,7]
[313304481,1707127860782,-520.79,0.00042739,7]
[313304482,1707127860791,-500.0,0.00042739,7]
[313304483,1707127860800,-500.0,0.00042739,7]
[313304484,1707127860809,-1414.46,0.00042739,7]
[313304485,1707127860819,-500.0,0.00042739,7]
[313304486,1707127860828,-655.39,0.00042739,7]
[313304487,1707127860837,-842.26,0.00042739,7]
[313304488,1707127860847,-500.0,0.00042739,7]
[313304489,1707127860855,-500.0,0.00042739,7]
[313304490,1707127860864,-500.0,0.00042739,7]
[313304491,1707127860874,-664.86,0.00042739,7]
[313304492,1707127860883,-500.0,0.00042739,7]
[313304493,1707127860894,-1278.72,0.00042739,7]
[313304494,1707127860905,-500.0,0.00042739,7]
[313304495,1707127860915,-606.87,0.00042739,7]
[313304496,1707127860925,-500.0,0.00042739,7]
[313304497,1707127860935,-850.58,0.00042739,7]
[313304498,1707127860945,-776.81,0.00042739,7]
[313304499,1707127860956,-500.0,0.00042739,7]
[313304500,1707127860966,-500.0,0.00042739,7]
[313304501,1707127860976,-500.0,0.00042739,7]
[313304502,1707127860986,-685.65,0.00042739,7]
[313304503,1707127860996,-500.0,0.00042739,7]
[313304504,1707127861006,-500.0,0.00042739,7]
[313304505,1707127861017,-524.3,0.00042739,7]
[313304506,1707127861027,-500.0,0.00042739,7]
[313304507,1707127861036,-500.0,0.00042739,7]
[313304508,1707127861046,-500.0,0.00042739,7]
[313304509,1707127861056,-500.0,0.00042739,7]
[313304510,1707127861065,-1060.32,0.00042739,7]
[313304511,1707127861074,-1737.35,0.00042739,7]
[313304512,1707127861084,-500.0,0.00042739,7]
[313304513,1707127861094,-500.0,0.00042739,7]
[313304514,1707127861103,-497.84490583,0.00042739,2]
[313304515,1707127861113,-500.0,0.00042739,7]
[313304516,1707127861123,-500.0,0.00042739,7]
[313304517,1707127861134,-500.0,0.00042739,7]
[313304518,1707127861143,-781.78,0.00042739,7]
[313304519,1707127861153,-500.0,0.00042739,7]
[313304520,1707127861162,-500.0,0.00042739,7]
[313304521,1707127861173,-824.44,0.00042739,7]
[313304522,1707127861183,-500.0,0.00042739,7]
[313304523,1707127861197,-500.0,0.00042739,7]
[313304524,1707127861206,-500.0,0.00042739,7]
[313304525,1707127861216,-500.0,0.00042739,7]
[313304526,1707127861227,-500.0,0.00042739,7]
[313304527,1707127861237,-3430.5,0.00042739,7]
[313304528,1707127861247,-500.0,0.00042739,7]
[313304529,1707127861256,-500.0,0.00042739,7]
[313304530,1707127861268,-500.0,0.00042739,7]
[313304531,1707127861278,-1266.59,0.00042739,7]
[313304532,1707127861288,-2414.76,0.00042739,5]
[313304533,1707127861298,-500.0,0.00042739,7]
[313304534,1707127861307,-500.0,0.00042739,7]
[313304535,1707127861317,-193.65733705,0.00042739,7]
[313304536,1707127861326,-585.33,0.00042739,7]
[313304537,1707127861336,-1135.81,0.00042739,7]
[313304538,1707127861346,-500.0,0.00042739,7]
[313304539,1707127861356,-1049.13,0.00042739,7]
[313304540,1707127861365,-10927.31,0.00042739,7]
[313304541,1707127861375,-500.0,0.00042739,7]
[313304542,1707127861384,-500.0,0.00042739,7]
[313304543,1707127861394,-500.0,0.00042757,2]
[313304544,1707127861404,-226.0,0.0004279,2]
[313304545,1707127861413,-902.62274662,0.00042829,2]
[313304546,1707127861422,-489.46953696,0.00042829,2]
[313304547,1707127861431,-1629.35499543,0.00042829,2]
[313304548,1707127861441,-1068.60662849,0.00042829,2]
[313304549,1707127861451,-252.38070884,0.00042829,2]
[313304550,1707127861460,-200.0,0.00042834,2]
[313304551,1707127861555,-156.08818657,0.00042858,30]
[313304552,1707127861565,-2000.0,0.000429,4]
[313304553,1707127861575,-500.0,0.00042989,2]
[313304554,1707127861584,-1000.0,0.00043,2]
[313304555,1707127861594,-200.0,0.00043144,2]
[313304556,1707127861603,-500.0,0.00043221,2]
[313304557,1707127861613,-169.1575429,0.00043273,18]
[313304558,1707127861623,-151.14314895,0.00043376,2]
[313304559,1707127861632,-3453.0,0.0004339,2]
[313304560,1707127861641,-2409.0,0.0004339,2]
[313304561,1707127861651,-187.66035888,0.00043399,37]
[313304562,1707127861661,-85320.0,0.000434,2]
[313304563,1707127861670,-1911.12,0.00043442,57]
[313304564,1707127861680,-500.0,0.00043442,7]
[313304565,1707127861690,-500.0,0.00043443,7]
[313304566,1707127861700,-500.0,0.00043443,7]
[313304567,1707127861709,-500.0,0.00043443,7]
[313304568,1707127861719,-500.0,0.00043443,7]
[313304569,1707127861728,-500.0,0.00043443,7]
[313304570,1707127861737,-500.0,0.00043443,7]
[313304571,1707127861746,-500.0,0.00043443,7]
[313304572,1707127861755,-500.0,0.00043443,7]
[313304573,1707127861765,-1000.0,0.00043443,7]
[313304574,1707127861774,-1000.0,0.00043443,7]
[313304575,1707127861784,-500.0,0.00043443,7]
[313304576,1707127861792,-500.0,0.00043443,7]
[313304577,1707127861802,-268.91332971,0.00043443,7]
[313304578,1707127861811,-168.78858637,0.00043443,7]
[313304579,1707127861821,-500.0,0.00043443,7]
[313304580,1707127861830,-500.0,0.00043443,7]
[313304581,1707127861841,-500.0,0.00043443,7]
[313304582,1707127861851,-500.0,0.00043443,7]
[313304583,1707127861861,-500.0,0.00043443,7]
[313304584,1707127861870,-500.0,0.00043443,7]
[313304585,1707127861879,-500.0,0.00043443,7]
[313304586,1707127861888,-228.54674464,0.00043443,7]
[313304587,1707127861899,-500.0,0.00043443,7]
[313304588,1707127861908,-552.2,0.00043443,7]
[313304589,1707127861918,-246.17631828,0.00043443,7]
[313304590,1707127861927,-500.0,0.00043443,7]
[313304591,1707127861937,-500.0,0.00043443,7]
[313304592,1707127861946,-500.0,0.00043443,7]
[313304593,1707127861955,-500.0,0.00043443,7]
[313304594,1707127861966,-500.0,0.00043443,7]
[313304595,1707127861976,-500.0,0.00043443,7]
[313304596,1707127861986,-435.1879772,0.00043443,7]
[313304597,1707127861995,-573.60562387,0.00043443,7]
[313304598,1707127862005,-500.0,0.00043443,7]
[313304599,1707127862015,-500.0,0.00043443,7]
[313304600,1707127862026,-500.0,0.00043443,7]
[313304601,1707127862035,-500.0,0.00043443,7]
[313304602,1707127862044,-500.0,0.00043443,7]
[313304603,1707127862053,-1127.36,0.00043443,7]
[313304604,1707127862062,-500.0,0.00043443,7]
[313304605,1707127862073,-1539.46,0.00043443,7]
[313304606,1707127862083,-648.97417358,0.00043443,7]
[313304607,1707127862093,-500.0,0.00043443,7]
[313304608,1707127862112,-824.07,0.00043443,7]
[313304609,1707127862125,-500.0,0.00043443,7]
[313304610,1707127862135,-211.75200958,0.00043443,7]
[313304611,1707127862145,-1071.9,0.00043443,7]
[313304612,1707127862155,-615.12533403,0.00043443,7]
[313304613,1707127862165,-500.0,0.00043443,7]
[313304614,1707127862176,-377.29969531,0.00043443,7]
[313304615,1707127862186,-1205.02,0.00043443,7]
[313304616,1707127862198,-500.0,0.00043454,2]
[313304617,1707127862208,-200.0,0.00043454,2]
[313304618,1707127862218,-800.0,0.00043455,10]
[313304619,1707127862244,-307.0,0.0004349,2]
[313304620,1707127862267,-213.0,0.0004349,2]
[313304621,1707127862290,-500.0,0.00043542,7]
[313304622,1707127862313,-500.0,0.00043542,7]
[313304623,1707127862331,-500.0,0.00043542,7]
[313304624,1707127862351,-589.00964482,0.00043542,7]
[313304625,1707127862370,-559.90338236,0.00043542,7]
[313304626,1707127862386,-547.82692956,0.00043542,7]
[313304627,1707127862404,-500.0,0.00043542,7]
[313304628,1707127862426,-502.09346219,0.00043542,7]
[313304629,1707127862443,-1000.0,0.00043542,7]
[313304630,1707127862462,-500.0,0.00043542,7]
[313304631,1707127862482,-174.6279224,0.00043542,7]
[313304632,1707127862496,-500.0,0.00043542,7]
[313304633,1707127862513,-401.48078384,0.00043542,7]
[313304634,1707127862533,-553.83990831,0.00043542,7]
[313304635,1707127862548,-209.70333742,0.00043542,7]
[313304636,1707127862565,-210.67583258,0.00043542,7]
[313304637,1707127862583,-500.0,0.00043542,7]
[313304638,1707127862600,-500.0,0.00043542,7]
[313304639,1707127862617,-500.0,0.00043542,7]
[313304640,1707127862635,-214.79342625,0.00043542,7]
[313304641,1707127862651,-500.0,0.00043542,7]
[313304642,1707127862668,-500.0,0.00043542,7]
[313304643,1707127862683,-500.0,0.00043542,7]
[313304644,1707127862698,-310.84794939,0.00043542,7]
[313304645,1707127862714,-500.0,0.00043542,7]
[313304646,1707127862728,-500.0,0.00043542,7]
[313304647,1707127862743,-215.82185855,0.00043542,7]
[313304648,1707127862759,-500.0,0.00043542,7]
[313304649,1707127862774,-500.0,0.00043542,7]
[313304650,1707127862789,-437.07991281,0.00043542,7]
[313304651,1707127862803,-500.0,0.00043542,7]
[313304652,1707127862818,-225.70195658,0.00043542,7]
[313304653,1707127862833,-500.0,0.00043542,7]
[313304654,1707127862848,-188.96952905,0.00043542,7]
[313304655,1707127862863,-189.65657379,0.00043542,7]
[313304656,1707127862877,-536.60516894,0.00043542,7]
[313304657,1707127862893,-500.0,0.00043542,7]
[313304658,1707127862909,-632.57567252,0.00043542,7]
[313304659,1707127862924,-575.16252694,0.00043542,7]
[313304660,1707127862939,-500.0,0.00043542,7]
[313304661,1707127862956,-500.0,0.00043542,7]
[313304662,1707127862972,-500.0,0.00043542,7]
[313304663,1707127862989,-163.72063698,0.00043542,7]
[313304664,1707127863005,-612.32805915,0.00043542,7]
[313304665,1707127863020,-500.0,0.00043542,7]
[313304666,1707127863035,-250.90274327,0.00043542,7]
[313304667,1707127863049,-500.0,0.00043542,7]
[313304668,1707127863064,-500.0,0.00043542,7]
[313304669,1707127863079,-289.9360669,0.00043542,7]
[313304670,1707127863095,-500.0,0.00043542,7]
[313304671,1707127863110,-500.0,0.00043542,7]
[313304672,1707127863124,-500.0,0.00043542,7]
[313304673,1707127863140,-500.0,0.00043542,7]
[313304674,1707127863155,-210.23494427,0.00043542,7]
[313304675,1707127863171,-500.0,0.00043542,2]
[313304676,1707127863187,-654.83,0.00043542,7]
[313304677,1707127863203,-500.0,0.00043542,2]
[313304678,1707127863219,-500.0,0.00043542,7]
[313304679,1707127863234,-500.0,0.00043542,7]
[313304680,1707127863250,-500.0,0.00043542,7]
[313304681,1707127863264,-500.0,0.00043542,7]
[313304682,1707127863280,-252.76951752,0.00043542,7]
[313304683,1707127863294,-500.0,0.00043542,7]
[313304684,1707127863308,-186.49671655,0.00043542,7]
[313304685,1707127863322,-280.34016697,0.00043542,7]
[313304686,1707127863467,-500.0,0.00043542,7]
[313304687,1707127863482,-500.0,0.00043542,7]
[313304688,1707127863491,-500.0,0.00043542,7]
[313304689,1707127863500,-500.0,0.00043542,7]
[313304690,1707127863509,-260.46802337,0.00043542,7]
[313304691,1707127863520,-500.19,0.00043542,7]
[313304692,1707127863529,-500.0,0.00043542,7]
[313304693,1707127863539,-500.0,0.00043542,7]
[313304694,1707127863549,-342.4643605,0.00043542,7]
[313304695,1707127863558,-627.36056951,0.00043542,7]
[313304696,1707127863567,-500.0,0.00043542,7]
[313304697,1707127863575,-500.0,0.00043542,7]
[313304698,1707127863584,-500.0,0.00043542,7]
[313304699,1707127863593,-500.0,0.00043542,7]
[313304700,1707127863602,-150.16552109,0.00043542,7]
[313304701,1707127863611,-500.0,0.00043542,7]
[313304702,1707127863620,-500.0,0.00043542,7]
[313304703,1707127863630,-155.92758043,0.00043542,7]
[313304704,1707127863639,-500.0,0.00043542,7]
[313304705,1707127863648,-500.0,0.00043542,2]
[313304706,1707127863657,-500.0,0.00043561,7]
[313304707,1707127863666,-500.0,0.00043561,7]
[313304708,1707127863676,-500.0,0.00043561,7]
[313304709,1707127863685,-500.0,0.00043561,7]
[313304710,1707127863694,-568.90613799,0.00043561,7]
[313304711,1707127863703,-209.06379183,0.00043561,7]
[313304712,1707127863713,-513.87,0.00043561,7]
[313304713,1707127863722,-500.0,0.00043561,7]
[313304714,1707127863731,-500.0,0.00043561,7]
[313304715,1707127863740,-187.93928178,0.00043561,7]
[313304716,1707127863750,-285.43260497,0.00043561,7]
[313304717,1707127863759,-589.4431913,0.00043561,7]
[313304718,1707127863769,-500.0,0.00043561,7]
[313304719,1707127863778,-500.0,0.00043561,7]